bitfinex/quotes_ETHUSD_20220311
["timestamp","ask_amount","ask_price","bid_price","bid_amount"]
[1646976583571,0.05406929,2550.6,2550.4,3.53174358]
[1646976584475,0.05007245,2550.6,2550.4,3.53174358]
[1646976584775,0.05406929,2550.6,2550.4,3.53174358]
[1646976585577,0.05007245,2550.6,2550.4,3.53174358]
[1646976585981,0.05406929,2550.6,2550.4,3.53174358]
[1646976586878,0.05007245,2550.6,2550.4,3.53174358]
[1646976587322,0.05399498,2550.6,2550.4,3.53174358]
[1646976587924,0.05007245,2550.6,2550.4,3.53174358]
[1646976588323,0.05399498,2550.6,2550.4,3.53174358]
[1646976588525,0.05399498,2550.6,2550.4,3.53036809]
[1646976589124,0.05007245,2550.6,2550.4,3.53036809]
[1646976589524,0.05399498,2550.6,2550.4,3.53036809]
[1646976590426,0.05007245,2550.6,2550.4,3.53036809]
[1646976590726,0.05392048,2550.6,2550.4,3.53036809]
[1646976591174,0.05392048,2550.6,2550.4,4.51044349]
[1646976591471,0.05392048,2550.6,2550.5,3.5]
[1646976591672,0.05007245,2550.6,2550.5,3.5]
[1646976591872,0.05392048,2550.6,2550.5,3.5]
[1646976592876,0.05007245,2550.6,2550.4,1.01044349]
[1646976593076,0.05007245,2550.6,2550.4,0.03036809]
[1646976593681,0.05007245,2550.6,2550.2,1.154]
[1646976593878,0.10474601,2550.6,2550.2,1.154]
[1646976594076,1.08514601,2550.6,2550.2,1.154]
[1646976594275,0.04397142,2550.5,2550.2,1.154]
[1646976594622,0.04397142,2550.5,2550.1,0.57393247]
[1646976595223,0.04397142,2550.5,2549.5,2.23605083]
[1646976595224,1.66381544,2550.4,2549.5,2.04005083]
[1646976595432,1.961,2550.5,2549.3,1.0]
[1646976595433,8.64631391,2550.3,2549.3,1.0]
[1646976595623,0.04640082,2550.1,2549.3,1.0]
[1646976595824,0.50917358,2550.0,2549.3,1.0]
[1646976596123,1.04389586,2549.9,2549.3,1.0]
[1646976596326,0.05382488,2549.5,2549.3,1.0]
[1646976596526,4.91082488,2549.5,2549.3,1.0]
[1646976596727,0.05390211,2549.4,2549.3,1.0]
[1646976597627,1.03483211,2549.4,2549.3,1.0]
[1646976597826,1.18697828,2549.4,2549.3,1.0]
[1646976599572,1.18697828,2549.4,2548.9,1.14637148]
[1646976599771,0.04590808,2549.3,2548.9,1.14637148]
[1646976601172,0.15214617,2549.2,2548.9,1.14637148]
[1646976602926,0.15214617,2549.2,2548.9,1.44637148]
[1646976603127,0.15214617,2549.2,2548.9,1.14637148]
[1646976603324,0.15214617,2549.2,2549.0,0.47895004]
[1646976603527,0.01598056,2549.6,2549.1,5.5]
[1646976603730,0.05604335,2550.0,2549.2,0.7795154]
[1646976603925,0.00194489,2550.2,2549.9,0.92301617]
[1646976604128,0.00194489,2550.3,2549.9,0.92301617]
[1646976604324,0.05241886,2550.4,2549.9,0.92301617]
[1646976604927,0.04842497,2550.4,2549.9,0.92301617]
[1646976605127,0.05242026,2550.4,2549.9,0.92301617]
[1646976605528,0.05383233,2550.3,2549.9,0.92301617]
[1646976605727,0.05383233,2550.3,2549.9,0.87301617]
[1646976606980,0.00399523,2550.4,2549.9,3.06154807]
[1646976607177,0.00399523,2550.4,2550.0,1.9603449]
[1646976607379,0.9976,2550.5,2550.0,1.9603449]
[1646976607579,0.9976,2550.5,2550.4,0.82892911]
[1646976607780,0.9976,2550.5,2550.0,1.9603449]
[1646976608178,0.9976,2550.5,2549.9,0.60199979]
[1646976608381,0.9976,2550.5,2549.9,0.3]
[1646976608879,0.00399539,2550.4,2549.7,0.56328789]
[1646976609080,0.00399539,2550.4,2550.1,4.08223217]
[1646976609281,1.00159539,2550.4,2550.1,7.1231573]
[1646976609719,0.9976,2550.4,2550.1,7.1231573]
[1646976609922,1.00151195,2550.4,2550.1,7.1231573]
[1646976610325,1.00151195,2550.4,2550.1,7.4231573]
[1646976610825,0.04710749,2550.3,2550.1,7.4231573]
[1646976612325,0.04710749,2550.3,2550.1,6.07935055]
[1646976613379,1.02765749,2550.3,2550.1,6.07935055]
[1646976613569,0.04277613,2550.2,2550.1,6.07935055]
[1646976613770,1.04037613,2550.2,2550.1,6.07935055]
[1646976615371,0.04277613,2550.2,2550.1,6.07935055]
[1646976615572,0.00357127,2550.4,2550.1,6.07935055]
[1646976615773,0.10381712,2550.6,2550.1,3.04092513]
[1646976615974,0.00384884,2550.4,2549.7,1.27029833]
[1646976616172,0.00384884,2550.4,2550.0,0.9803694]
[1646976616573,0.00384884,2550.4,2550.1,0.89923167]
[1646976616978,0.10381712,2550.6,2550.1,0.89923167]
[1646976617231,0.00386143,2550.4,2550.1,0.89923167]
[1646976617427,0.00386143,2550.4,2549.7,2.2607635]
[1646976618028,0.10381712,2550.6,2549.7,2.2607635]
[1646976618429,0.00386124,2550.4,2549.8,1.00597137]
[1646976618628,0.05898275,2550.4,2549.8,1.00597137]
[1646976619328,0.05512151,2550.4,2549.8,1.00597137]
[1646976619631,0.05898282,2550.4,2549.8,1.00597137]
[1646976619829,0.05898282,2550.4,2549.8,4.50597137]
[1646976620029,0.05898282,2550.4,2549.7,1.2804784]
[1646976620628,0.05512151,2550.4,2549.7,1.2804784]
[1646976620873,0.05897993,2550.4,2549.7,1.2804784]
[1646976621073,0.05897993,2550.4,2550.0,3.03842542]
[1646976621376,0.05897993,2550.4,2550.0,6.07935055]
[1646976621671,0.05512151,2550.4,2550.0,6.07935055]
[1646976622072,0.05898012,2550.4,2550.0,6.07935055]
[1646976622877,0.05512151,2550.4,2550.0,9.57935055]
[1646976623082,1.05007245,2550.6,2550.0,9.87935055]
[1646976623278,0.00385861,2550.4,2550.1,0.3]
[1646976624076,0.05007245,2550.6,2550.1,0.3]
[1646976624276,0.05007245,2550.6,2550.5,0.83756739]
[1646976624722,0.05007245,2550.6,2550.5,0.81333776]
[1646976626528,0.05007245,2550.6,2550.5,6.89268831]
[1646976626929,7.245e-05,2550.6,2550.5,6.07935055]
[1646976628678,7.245e-05,2550.6,2550.5,6.03090326]
[1646976629476,0.0466067,2550.6,2550.5,6.03090326]
[1646976629975,3.24218694,2550.6,2550.5,3.24230048]
[1646976630180,5.34203281,2550.6,2550.5,3.24230048]
[1646976630775,5.34203281,2550.6,2550.5,1.51790058]
[1646976631475,5.34203281,2550.6,2549.9,3.33554771]
[1646976631678,1.03618747,2550.4,2549.8,1.17513447]
[1646976631876,0.044092,2550.3,2550.2,1.51790058]
[1646976632123,2.60901321,2550.6,2550.2,1.51790058]
[1646976632329,0.05256431,2550.5,2550.2,1.51790058]
[1646976632732,0.05256431,2550.5,2550.2,1.04116201]
[1646976632928,0.05642345,2550.5,2550.2,1.04116201]
[1646976633531,0.0448556,2550.3,2550.2,1.04116201]
[1646976633733,5.62349802,2550.3,2550.2,1.04116201]
[1646976633930,2.12349802,2550.3,2550.2,1.04116201]
[1646976634128,3.12349802,2550.3,2550.2,1.04116201]
[1646976635429,3.12349802,2550.3,2549.7,1.32748689]
[1646976635629,1.67037343,2550.2,2549.7,1.32748689]
[1646976635893,0.05131339,2550.1,2549.7,1.32748689]
[1646976638088,0.52530216,2550.4,2550.0,1.04486321]
[1646976638286,1.61665304,2550.3,2549.8,0.3]
[1646976638787,0.04546389,2550.2,2549.8,0.3]
[1646976639823,1.14808247,2550.2,2549.8,0.3]
[1646976640222,1.14808247,2550.2,2550.0,1.7646788]
[1646976640924,1.14808247,2550.2,2550.0,0.49632447]
[1646976641425,0.04546389,2550.2,2549.8,0.8824676]
[1646976642629,0.04546389,2550.2,2549.6,1.33368918]
[1646976642828,0.04546389,2550.2,2549.6,1.63368918]
[1646976643873,0.04546389,2550.2,2549.6,1.33368918]
[1646976644471,0.04546389,2550.2,2549.6,0.196]
[1646976645475,1.02609389,2550.2,2549.6,0.28254504]
[1646976649131,0.04546389,2550.2,2549.6,0.28254504]
[1646976650981,1.01766622,2550.4,2549.6,0.28254504]
[1646976651176,1.61672969,2550.3,2549.6,0.28254504]
[1646976652382,0.83371916,2550.1,2549.6,0.28254504]
[1646976652682,0.83371916,2550.1,2549.7,0.8824885]
[1646976657229,0.9448,2550.3,2549.7,0.8824885]
[1646976657429,1.66365591,2550.2,2549.7,0.8824885]
[1646976657628,1.61680928,2550.1,2549.7,0.8824885]
[1646976658476,0.87347706,2550.2,2549.7,0.8824885]
[1646976660383,0.04684663,2550.2,2549.7,0.8824885]
[1646976665031,1.04684663,2550.2,2549.7,0.8824885]
[1646976665231,1.04684663,2550.2,2549.8,0.3]
[1646976665431,1.04684663,2550.2,2549.9,0.8824675]
[1646976665632,1.04684663,2550.2,2550.0,0.3]
[1646976667486,2.02742663,2550.2,2550.0,0.3]
[1646976667686,1.02742663,2550.2,2550.0,0.3]
[1646976667886,1.0,2550.1,2550.0,0.3]
[1646976668689,2.61670974,2550.1,2550.0,0.3]
[1646976669089,2.61670808,2550.1,2550.0,0.3]
[1646976669726,2.61670808,2550.1,2549.8,1.7649655]
[1646976669926,1.61670808,2550.0,2549.8,1.7649655]
[1646976670129,1.61670808,2550.0,2549.8,2.0649655]
[1646976670425,1.0,2550.1,2549.8,2.0649655]
[1646976670626,1.61676449,2550.0,2549.8,2.0649655]
[1646976673146,1.61676449,2550.0,2549.8,1.7649655]
[1646976673378,1.61676449,2550.0,2549.8,2.0649655]
[1646976673582,1.0,2550.1,2549.8,2.0649655]
[1646976674378,1.0,2550.1,2549.9,0.08962759]
[1646976674781,1.0,2550.1,2550.0,0.08558035]
[1646976675079,1.0,2550.1,2550.0,0.38558035]
[1646976675282,2.61658353,2550.1,2550.0,0.38558035]
[1646976675684,2.61502692,2550.1,2550.0,0.38558035]
[1646976677329,1.61658353,2550.1,2550.0,0.38558035]
[1646976677530,1.61658353,2550.2,2550.0,0.38558035]
[1646976680133,1.61658353,2550.2,2550.0,0.08558035]
[1646976680736,0.9448,2550.3,2550.0,0.38558035]
[1646976680983,0.00353176,2550.4,2550.0,0.38558035]
[1646976681885,1.61645087,2550.5,2550.0,0.38558035]
[1646976682079,1.61998274,2550.4,2550.0,1.28031]
[1646976682284,0.00353187,2550.4,2550.1,0.8822592]
[1646976682483,0.00353187,2550.4,2550.2,0.07183019]
[1646976682682,0.00353187,2550.4,2550.2,0.37183019]
[1646976683082,1.61638957,2550.6,2550.3,0.95897656]
[1646976683283,0.00353189,2550.4,2550.3,0.95897656]
[1646976684284,1.61634129,2550.7,2550.3,1.84125846]
[1646976684491,1.61634129,2550.7,2550.3,1.51040523]
[1646976684492,0.00353188,2550.5,2550.3,1.51040523]
[1646976684726,0.00353188,2550.5,2550.4,0.3]
[1646976685526,1.61634129,2550.7,2550.4,0.3]
[1646976685725,0.00353185,2550.6,2550.4,0.3]
[1646976686728,0.9804,2550.7,2550.4,0.3]
[1646976686928,0.00353184,2550.6,2550.4,0.3]
[1646976687832,0.9804,2550.7,2550.4,0.3]
[1646976688033,0.00353184,2550.6,2550.4,0.3]
[1646976688479,0.9976,2550.5,2550.4,0.3]
[1646976688680,0.00353184,2550.6,2550.4,0.3]
[1646976689078,0.9804,2550.7,2550.4,0.06053768]
[1646976689279,0.00353184,2550.6,2550.3,0.55142867]
[1646976690280,0.9804,2550.7,2550.4,0.3]
[1646976690480,0.00353184,2550.6,2550.4,0.3]
[1646976691482,0.9804,2550.7,2550.4,0.3]
[1646976691683,0.00292937,2550.6,2550.4,0.3]
[1646976692534,0.9804,2550.7,2550.4,0.3]
[1646976692832,0.00353476,2550.6,2550.4,0.3]
[1646976693833,0.9804,2550.7,2550.4,0.3]
[1646976694034,0.00353476,2550.6,2550.4,0.3]
[1646976694237,0.00353476,2550.6,2550.2,0.07183019]
[1646976694238,3.50353476,2550.6,2550.2,0.07183019]
[1646976694436,2.59685064,2550.5,2550.2,0.07183019]
[1646976694637,2.58769,2550.5,2550.2,0.07183019]
[1646976694836,1.61649901,2550.4,2550.0,0.07574208]
[1646976695043,0.462,2550.3,2550.0,0.07574208]
[1646976695236,1.60157442,2550.3,2550.0,0.07574208]
[1646976695637,1.60157442,2550.3,2550.0,0.95822948]
[1646976696481,1.61660375,2550.2,2550.0,0.95822948]
[1646976696880,1.61559879,2550.2,2550.0,0.95822948]
[1646976697590,3.5,2550.1,2549.8,1.7649113]
[1646976697784,0.462,2550.2,2549.8,2.0649113]
[1646976705080,0.50376659,2550.2,2549.8,2.0649113]
[1646976705483,0.44110059,2550.2,2549.8,2.0649113]
[1646976709032,0.399334,2550.2,2549.8,2.0649113]
[1646976709233,0.00352231,2550.4,2549.9,0.0806891]
[1646976709432,1.95648842,2550.5,2549.9,0.0806891]
[1646976709433,0.9976,2550.5,2549.9,0.0806891]
[1646976709632,0.9976,2550.5,2550.0,0.07518982]
[1646976709834,0.00352231,2550.4,2550.0,0.07518982]
[1646976710634,0.9976,2550.5,2550.0,0.07518982]
[1646976710890,0.00352374,2550.4,2550.0,0.07518982]
[1646976711082,0.98400374,2550.4,2550.0,0.07518982]
[1646976711881,0.98048,2550.4,2550.0,0.07518982]
[1646976712082,0.98400374,2550.4,2550.0,0.07518982]
[1646976712286,0.98400374,2550.4,2550.0,0.95756772]
[1646976712486,0.98400374,2550.4,2550.0,0.89490172]
[1646976712686,0.98400374,2550.4,2550.0,1.19490172]
[1646976713090,0.98048,2550.4,2550.0,1.19490172]
[1646976713286,0.98400374,2550.4,2550.0,1.19490172]
[1646976713886,0.85582556,2550.4,2550.0,1.19490172]
[1646976714388,0.85230182,2550.4,2550.0,1.19490172]
[1646976714628,0.85582535,2550.4,2550.0,1.19490172]
[1646976715529,0.85230182,2550.4,2550.0,1.19490172]
[1646976715732,0.85582535,2550.4,2550.0,1.19490172]
[1646976716727,0.85230182,2550.4,2550.0,1.19490172]
[1646976716930,1.61656799,2550.3,2550.0,1.19490172]
[1646976717635,0.85582535,2550.4,2550.0,1.19490172]
[1646976717834,0.85230182,2550.4,2550.0,1.19490172]
[1646976718237,0.85582534,2550.4,2550.0,1.19490172]
[1646976719080,0.99586935,2550.2,2550.0,1.19490172]
[1646976719882,0.8558254,2550.4,2550.0,1.19490172]
[1646976720082,1.6165719,2550.3,2550.0,1.19490172]
[1646976720485,0.00352358,2550.4,2550.0,1.19490172]
[1646976720886,1.62009399,2550.4,2550.0,1.19490172]
[1646976721588,1.6538,2550.6,2550.0,1.19490172]
[1646976721785,0.00352357,2550.4,2550.0,1.19490172]
[1646976722244,0.97483104,2550.1,2550.0,1.19490172]
[1646976723045,0.97483104,2550.1,2550.0,0.8197119]
[1646976723247,0.97483104,2550.1,2549.8,1.7649113]
[1646976724546,0.00352328,2550.4,2549.8,1.7649113]
[1646976724948,1.62024353,2550.4,2549.8,1.7649113]
[1646976725148,1.61672025,2550.4,2549.8,1.7649113]
[1646976725348,0.00352346,2550.4,2549.8,1.7649113]
[1646976725548,1.10760491,2550.1,2549.8,1.7649113]
[1646976726283,1.10760491,2550.1,2549.8,2.0649113]
[1646976727891,1.10760491,2550.1,2549.8,0.3]
[1646976728287,1.10760491,2550.1,2549.7,0.07180701]
[1646976730741,1.10760491,2550.1,2549.6,1.6469]
[1646976730940,1.10760491,2550.1,2549.6,1.64539744]
[1646976731538,1.10760491,2550.1,2549.9,0.4944]
[1646976732039,1.10760491,2550.1,2549.6,1.64539744]
[1646976733782,1.10760491,2550.1,2549.7,0.8824963]
[1646976734179,1.12739991,2550.1,2549.7,0.8824963]
[1646976739033,0.019795,2550.1,2549.7,0.8824963]
[1646976739235,0.019795,2550.1,2549.8,1.7647385]
[1646976740535,0.019795,2550.1,2549.7,0.8823536]
[1646976740536,0.019795,2550.1,2549.6,1.42639159]
[1646976740985,0.019795,2550.1,2549.6,4.92639159]
[1646976741391,0.019795,2550.1,2549.6,1.72639159]
[1646976741584,0.97509219,2549.8,2549.6,1.72639159]
[1646976741785,0.97509219,2549.8,2549.6,0.57549159]
[1646976742188,0.99488719,2549.8,2549.6,0.57549159]
[1646976742589,0.99488719,2549.8,2549.6,0.37949159]
[1646976743097,0.99488719,2549.8,2549.2,1.2648607]
[1646976743291,1.61698363,2549.7,2549.3,0.08260351]
[1646976744192,1.63677863,2549.7,2549.3,0.08260351]
[1646976744392,1.000595,2549.7,2549.3,0.08260351]
[1646976746637,0.019795,2549.7,2549.3,0.08260351]
[1646976748392,0.019795,2549.7,2549.4,2.02329257]
[1646976748583,0.019795,2549.7,2549.4,2.0306484]
[1646976754740,0.019795,2549.7,2549.5,3.58629431]
[1646976754941,0.019795,2549.7,2549.6,0.08854841]
[1646976755140,0.05802445,2549.7,2549.6,0.08854841]
[1646976756385,0.05802445,2549.7,2549.6,3.88854841]
[1646976756583,0.05802445,2549.7,2549.6,3.8]
[1646976758589,0.05802445,2549.7,2549.6,3.8058644]
[1646976759192,0.05802445,2549.7,2549.6,0.3058644]
[1646976759834,0.05802445,2549.7,2549.6,0.0058644]
[1646976760034,0.05802445,2549.7,2549.6,0.3058644]
[1646976760336,0.0396312,2549.7,2549.6,3.8058644]
[1646976763389,0.0396312,2549.7,2549.6,3.8]
[1646976770247,0.01414162,2550.2,2549.7,5.5]
[1646976770449,0.01414162,2550.2,2549.8,5.7558687]
[1646976770649,0.01414162,2550.2,2549.8,6.0558687]
[1646976770895,0.0165089,2550.8,2550.0,0.4944]
[1646976771083,0.0165089,2550.8,2550.1,3.5]
[1646976771286,0.0165089,2550.8,2550.3,1.01989731]
[1646976771287,0.00353553,2550.4,2550.3,1.01989731]
[1646976771484,0.00353553,2550.4,2550.1,3.8]
[1646976771684,0.00353553,2550.4,2550.1,5.2644243]
[1646976771884,0.00353553,2550.4,2550.1,5.5644243]
[1646976772084,0.0165089,2550.8,2550.1,5.5644243]
[1646976772287,1.61646391,2550.7,2550.1,5.5644243]
[1646976772489,0.00353416,2550.4,2550.1,5.5644243]
[1646976773388,1.89561865,2550.6,2550.1,5.5644243]
[1646976773589,0.00353416,2550.4,2550.1,5.5644243]
[1646976774637,1.89561865,2550.6,2550.1,2.0644243]
[1646976774836,0.00353416,2550.4,2550.1,2.0644243]
[1646976775039,0.00353416,2550.4,2550.1,0.29917038]
[1646976775243,0.00353416,2550.4,2549.9,8.55546954]
[1646976775444,0.00353416,2550.4,2549.9,2.79596954]
[1646976775638,0.98049,2550.5,2549.9,2.79596954]
[1646976775840,0.98049,2550.5,2549.9,1.7647269]
[1646976776038,0.00353423,2550.4,2549.9,1.7647269]
[1646976776239,0.00353423,2550.4,2550.0,0.3]
[1646976776938,0.98049,2550.5,2550.0,0.3]
[1646976777138,0.00353429,2550.4,2550.0,0.3]
[1646976777342,0.98054,2550.3,2550.0,0.3]
[1646976778989,0.00353423,2550.4,2550.0,0.3]
[1646976779388,0.98048,2550.5,2550.0,0.3]
[1646976779589,0.00353421,2550.4,2550.0,0.3]
[1646976780595,0.98048,2550.5,2550.0,0.3]
[1646976780790,0.00353427,2550.4,2550.0,1.1824033]
[1646976781792,0.04530362,2550.5,2550.0,1.1824033]
[1646976781989,0.00353427,2550.4,2550.0,1.1824033]
[1646976782836,0.04530362,2550.5,2550.0,1.1824033]
[1646976783338,0.00353427,2550.4,2550.0,1.1824033]
[1646976784037,0.04530362,2550.5,2550.0,1.1824033]
[1646976784237,0.04530362,2550.5,2550.0,1.0824033]
[1646976784437,0.00353427,2550.4,2550.0,1.0824033]
[1646976785236,0.04530362,2550.5,2550.0,1.0824033]
[1646976785641,0.00353427,2550.4,2550.0,1.0824033]
[1646976786485,0.04530362,2550.5,2550.0,1.0824033]
[1646976786685,0.00353427,2550.4,2550.0,1.0824033]
[1646976787288,0.98402427,2550.4,2550.0,1.0824033]
[1646976787689,0.98049,2550.4,2550.0,1.0824033]
[1646976787890,0.98402427,2550.4,2550.0,1.0824033]
[1646976788190,0.00353427,2550.4,2550.0,1.0824033]
[1646976788792,0.98049,2550.4,2550.0,0.7824033]
[1646976788994,2.07869852,2550.3,2549.9,1.7647269]
[1646976789193,0.462,2550.2,2549.8,1.1705]
[1646976789393,1.00353427,2550.4,2549.8,1.1705]
[1646976789394,0.462,2550.1,2549.8,1.1705]
[1646976789640,0.462,2550.1,2549.7,0.59900008]
[1646976790342,0.98065,2550.0,2549.7,0.89900008]
[1646976793581,0.98065,2550.0,2549.9,0.00727063]
[1646976795585,1.0,2550.2,2549.9,0.00727063]
[1646976795785,1.98059,2550.2,2549.9,0.00727063]
[1646976797647,0.9840341,2550.4,2549.9,0.00727063]
[1646976797844,1.61673234,2550.3,2549.9,1.77210273]
[1646976798046,1.61673234,2550.3,2550.0,1.1824066]
[1646976802588,1.28998361,2550.3,2550.0,1.1824066]
[1646976807142,0.00353421,2550.4,2550.0,4.6824066]
[1646976807345,0.00353421,2550.4,2550.0,1.1824066]
[1646976807944,0.03228812,2550.5,2550.0,1.1824066]
[1646976809687,0.03228812,2550.5,2550.0,4.6824066]
[1646976809888,0.03228812,2550.5,2550.0,1.1824066]
[1646976811087,0.03228812,2550.5,2550.0,4.6824066]
[1646976811687,0.03228812,2550.5,2550.0,1.1824066]
[1646976812342,0.9804,2550.6,2550.0,1.1824066]
[1646976812343,0.92413629,2550.4,2550.0,1.1824066]
[1646976815046,1.90463629,2550.4,2550.0,1.1824066]
[1646976815445,0.9805,2550.4,2550.1,3.5]
[1646976815649,1.0,2550.7,2550.2,0.95629791]
[1646976815889,1.0,2550.7,2550.4,0.07590158]
[1646976816387,0.0165089,2550.8,2550.4,0.07590158]
[1646976817192,0.0165089,2550.8,2550.4,0.95815418]
[1646976818993,0.0165089,2550.8,2550.5,3.5]
[1646976819193,0.0165089,2550.8,2550.5,0.3]
[1646976819397,0.9968389,2550.8,2550.5,0.3]
[1646976819636,0.9968389,2550.8,2550.4,1.85195563]
[1646976820439,1.9772089,2550.8,2550.4,0.96970303]
[1646976820638,0.87955199,2550.5,2550.4,0.96970303]
[1646976821340,0.87955199,2550.5,2550.2,0.08029541]
[1646976822346,1.44257,2550.4,2549.7,9.8175691]
[1646976822548,0.98065,2550.3,2549.7,8.052671]
[1646976822844,3.57817776,2550.2,2549.7,6.461071]
[1646976823044,1.61683776,2550.1,2549.7,3.665471]
[1646976823244,1.61683776,2550.1,2549.7,0.089371]
[1646976823687,2.59750776,2550.1,2549.7,0.089371]
[1646976823885,0.98067,2550.1,2549.7,0.089371]
[1646976824084,1.96135,2550.1,2549.7,0.089371]
[1646976824685,1.96135,2550.1,2549.5,1.078609]
[1646976824686,6.90680797,2550.0,2549.5,0.196]
[1646976824886,1.6169626,2549.9,2549.5,0.196]
[1646976825086,1.96157,2549.8,2549.5,0.196]
[1646976826385,0.98078,2549.8,2549.5,0.196]
[1646976826590,0.462,2549.9,2549.5,0.196]
[1646976826786,1.61702941,2549.8,2549.5,0.196]
[1646976827747,1.61702941,2549.8,2549.4,6.81659256]
[1646976828149,1.61702941,2549.8,2549.5,0.8826043]
[1646976828349,1.61702941,2549.8,2549.6,6.81659256]
[1646976829754,0.462,2549.9,2549.6,6.81659256]
[1646976829951,0.462,2549.9,2549.3,10.01272703]
[1646976830153,0.462,2549.9,2549.5,0.07051771]
[1646976830652,0.98073,2549.8,2549.3,10.01272703]
[1646976831890,0.98073,2549.8,2549.3,8.88178346]
[1646976834294,0.93546848,2549.7,2549.3,8.88178346]
[1646976834740,0.98073,2549.8,2549.3,8.88178346]
[1646976835737,1.48083452,2549.9,2549.3,8.88178346]
[1646976837145,2.48083452,2549.9,2549.3,8.88178346]
[1646976837348,0.98073,2549.8,2549.3,8.88178346]
[1646976838146,1.0,2549.7,2549.3,8.88178346]
[1646976838413,1.98079,2549.7,2549.3,7.11659256]
[1646976838602,0.98081,2549.6,2549.3,7.11659256]
[1646976840203,1.98079,2549.7,2549.3,6.81659256]
[1646976841805,0.01544293,2550.0,2549.4,0.37300912]
[1646976842006,1.5956,2550.1,2549.6,0.07878792]
[1646976842243,0.01544293,2550.0,2549.6,0.07878792]
[1646976842441,0.01544293,2550.0,2549.6,6.89538048]
[1646976843145,1.0,2550.2,2549.8,0.08391455]
[1646976843542,0.98066,2550.1,2549.8,0.08391455]
[1646976848398,0.98066,2550.1,2549.8,1.19106651]
[1646976848601,0.98176008,2550.1,2549.8,1.19106651]
[1646976849198,0.98176008,2550.1,2549.8,0.08391455]
[1646976850241,1.96237008,2550.1,2549.8,0.08391455]
[1646976850445,0.98171008,2550.1,2549.8,0.08391455]
[1646976850642,0.9807,2550.0,2549.8,0.08391455]
[1646976851445,0.98171008,2550.1,2549.7,3.87644594]
[1646976851644,0.00110008,2550.1,2549.8,0.8825258]
[1646976851944,1.9781,2550.3,2550.1,7.81e-05]
[1646976857344,0.98058,2550.2,2550.1,7.81e-05]
[1646976857947,1.9781,2550.3,2550.1,7.81e-05]
[1646976858148,0.9976,2550.3,2550.1,7.81e-05]
[1646976859547,0.9976,2550.3,2550.2,0.0838131]
[1646976859948,0.9976,2550.3,2550.2,1.0705131]
[1646976860349,0.00386084,2550.5,2550.2,1.0705131]
[1646976860551,0.00386084,2550.5,2550.4,0.07194276]
[1646976861197,0.98031,2550.7,2550.4,0.07194276]
[1646976861397,0.00386102,2550.6,2550.4,1.7646546]
[1646976861597,0.00386102,2550.6,2550.5,0.07350958]
[1646976862199,0.98430102,2550.6,2550.5,0.07350958]
[1646976862399,0.98044,2550.6,2550.5,0.07350958]
[1646976862998,0.98044,2550.6,2550.4,2.0646546]
[1646976863601,0.98031,2550.7,2550.4,2.0646546]
[1646976863800,0.00386101,2550.6,2550.4,2.0646546]
[1646976864846,0.98031,2550.7,2550.4,2.0646546]
[1646976865045,0.00386101,2550.6,2550.4,2.0646546]
[1646976866047,1.97791,2550.7,2550.4,2.0646546]
[1646976866250,0.00386101,2550.6,2550.4,2.0646546]
[1646976867150,0.9976,2550.7,2550.4,2.0646546]
[1646976867548,0.00386101,2550.6,2550.4,2.0646546]
[1646976868412,0.9976,2550.7,2550.5,3.5]
[1646976868602,0.00386101,2550.6,2550.5,3.5]
[1646976869700,0.9976,2550.7,2550.5,3.5]
[1646976869909,1.001461,2550.7,2550.5,4.3823058]
[1646976870103,1.001461,2550.7,2550.6,6.4461576]
[1646976870303,0.003861,2550.7,2550.6,6.4461576]
[1646976870903,0.0165089,2550.8,2550.6,6.4461576]
[1646976871102,0.02036987,2550.8,2550.7,3.5]
[1646976871405,0.02036987,2550.8,2550.7,3.8]
[1646976872003,0.0165089,2550.8,2550.7,3.8]
[1646976872245,0.00386095,2550.9,2550.8,4.89614144]
[1646976872456,0.05896982,2551.5,2550.9,5.5]
[1646976872648,0.05896982,2551.5,2551.4,1.03564603]
[1646976872846,0.0097572,2551.6,2551.4,2.13224603]
[1646976873046,0.05071422,2551.8,2551.5,4.0]
[1646976873448,0.0158465,2552.0,2551.8,0.0010807]
[1646976873646,0.0158465,2552.0,2551.8,0.8827717]
[1646976874150,0.0158465,2552.0,2551.8,1.1827717]
[1646976875249,0.0158465,2552.0,2551.7,0.92233163]
[1646976875250,1.61609956,2551.9,2551.7,0.92233163]
[1646976875550,4.03822956,2551.9,2551.7,0.92233163]
[1646976875748,2.42213,2551.9,2551.3,5.0157504]
[1646976875994,2.08301609,2551.8,2551.4,0.3]
[1646976876193,1.10290609,2551.8,2551.4,0.9860722]
[1646976877198,0.00401249,2551.7,2551.4,0.9860722]
[1646976877802,0.462,2551.6,2551.2,0.6861257]
[1646976878000,0.462,2551.6,2551.1,0.3]
[1646976878199,0.5204,2551.6,2551.0,2.6859]
[1646976878399,0.5204,2551.6,2551.1,0.00258699]
[1646976878599,0.5204,2551.6,2551.1,0.30258699]
[1646976878799,0.98026,2551.5,2551.1,0.68876429]
[1646976878999,1.44226,2551.5,2551.1,0.68876429]
[1646976879198,1.44226,2551.5,2551.1,0.9861773]
[1646976879401,0.462,2551.5,2551.1,0.9861773]
[1646976879644,0.00401258,2551.4,2551.1,0.98876429]
[1646976880246,0.00401258,2551.4,2551.1,0.68876429]
[1646976880446,0.462,2551.5,2551.1,0.6861773]
[1646976880747,0.00401058,2551.4,2551.1,0.68875782]
[1646976881547,0.00401058,2551.4,2551.1,0.9861773]
[1646976881748,0.462,2551.5,2551.1,0.9861773]
[1646976881953,0.00323983,2551.4,2551.1,0.9861773]
[1646976882853,0.462,2551.5,2551.1,0.9861773]
[1646976883054,0.00323983,2551.4,2551.1,0.9861773]
[1646976883897,0.462,2551.5,2551.1,0.9861773]
[1646976884296,0.00401581,2551.4,2551.1,0.98877526]
[1646976885298,0.462,2551.5,2551.1,0.9861773]
[1646976885497,0.00401581,2551.4,2551.1,0.98877526]
[1646976886499,1.56490609,2551.8,2551.1,0.9861773]
[1646976886699,1.56490609,2551.8,2551.1,0.98877526]
[1646976886700,0.00401581,2551.4,2551.1,0.98877526]
[1646976887748,1.56490609,2551.8,2551.1,0.9861773]
[1646976887951,0.00401581,2551.4,2551.1,0.98877526]
[1646976888850,1.56490609,2551.8,2551.1,0.9861773]
[1646976889051,1.56490609,2551.8,2551.1,0.98851547]
[1646976889052,0.00393789,2551.4,2551.1,0.98851547]
[1646976890054,0.98006,2551.7,2551.1,0.9861773]
[1646976890254,0.00393789,2551.4,2551.1,0.98851547]
[1646976891298,0.98006,2551.7,2551.1,0.9861773]
[1646976891498,0.00393789,2551.4,2551.1,0.98851547]
[1646976892504,0.98006,2551.7,2551.1,0.9861773]